bitfinex-derivatives/quotes_ETHF0:USTF0_20241022
["timestamp","ask_amount","ask_price","bid_price","bid_amount"]
[1729557542542,0.95097,2629.6,2628.7,3.65]
[1729557542543,3.2078,2629.0,2628.7,3.65]
[1729557542741,3.2078,2629.3,2628.9,3.65]
[1729557543064,3.2078,2629.3,2629.2,3.65]
[1729557543543,3.2078,2629.3,2629.2,12.34260828]
[1729557544242,2.5541786,2630.3,2629.2,16.34606829]
[1729557544243,5.7619786,2630.3,2629.2,16.34606829]
[1729557544441,2.9344786,2630.2,2629.9,3.65]
[1729557544638,2.5541786,2630.1,2629.9,3.65]
[1729557545034,2.9344786,2630.1,2629.9,3.65]
[1729557545436,2.5541786,2630.1,2630.0,4.98819779]
[1729557546232,2.5541786,2630.1,2629.4,0.3804]
[1729557546233,0.38032,2630.0,2629.6,3.65]
[1729557546548,0.38036,2629.7,2629.6,3.65]
[1729557547044,0.3804,2629.4,2629.3,3.65]
[1729557547239,0.38044,2629.2,2629.1,3.65]
[1729557547643,0.38044,2629.2,2629.1,40.8]
[1729557548043,0.38042,2629.4,2629.1,44.45]
[1729557548243,0.3804,2629.4,2629.3,3.65]
[1729557548436,0.38043,2629.2,2629.1,44.45]
[1729557549346,0.38041,2629.4,2629.1,44.45]
[1729557549542,2.5541786,2629.6,2629.1,44.45]
[1729557549845,0.38043,2629.2,2629.1,47.6578]
[1729557550050,0.3804,2629.5,2629.2,4.92336888]
[1729557550349,2.5541786,2629.6,2629.4,3.65]
[1729557550746,2.5541786,2629.9,2629.5,8.72656888]
[1729557550949,2.5541786,2629.8,2629.6,6.8578]
[1729557551141,3.2078,2630.4,2630.0,0.38031]
[1729557551344,2.5541786,2630.5,2630.3,3.65]
[1729557551558,2.5541786,2630.5,2630.4,3.65]
[1729557551845,2.5541786,2630.5,2630.4,8.57504766]
[1729557552039,2.5541786,2630.5,2630.4,3.65]
[1729557552237,2.5541786,2630.5,2630.4,44.45]
[1729557552461,0.38038,2629.6,2629.2,0.98464529]
[1729557552746,0.38038,2629.6,2629.0,3.2078]
[1729557552747,2.91895427,2629.5,2629.0,3.65]
[1729557552940,2.91895427,2629.5,2629.3,3.2078]
[1729557553249,2.91895427,2629.5,2628.7,3.65]
[1729557553250,0.38044,2629.2,2628.7,3.65]
[1729557553549,2.53856427,2629.5,2629.1,3.2078]
[1729557553759,2.53856427,2629.5,2629.2,3.65]
[1729557553942,0.38042,2629.3,2629.2,4.93265947]
[1729557554143,2.53856427,2629.5,2629.1,3.2078]
[1729557554349,2.53856427,2629.5,2628.9,3.2078]
[1729557554551,2.91896427,2629.5,2629.2,4.87574546]
[1729557554756,2.91896427,2629.5,2629.0,3.65]
[1729557554945,2.53856427,2629.5,2629.3,4.87574546]
[1729557555146,2.91896427,2629.5,2629.3,4.87574546]
[1729557555348,2.53856427,2629.5,2629.2,4.89453466]
[1729557555752,2.53856427,2629.5,2629.1,3.2078]
[1729557555962,2.53856427,2629.5,2629.2,4.89453466]
[1729557556149,2.53856427,2629.5,2629.1,3.2078]
[1729557556150,0.38041,2629.4,2629.1,3.2078]
[1729557556458,2.53856427,2629.5,2629.2,4.84793542]
[1729557556645,0.38042,2629.3,2629.2,4.84793542]
[1729557556845,0.38048,2628.9,2628.8,40.8]
[1729557557152,2.91904427,2628.9,2628.8,40.8]
[1729557557352,0.38052,2628.6,2628.5,3.2078]
[1729557557649,2.91908427,2628.6,2628.5,3.2078]
[1729557557847,2.91908427,2628.6,2628.5,44.0078]
[1729557558441,2.53856427,2628.6,2628.5,44.0078]
[1729557558653,2.91908427,2628.6,2628.5,44.0078]
[1729557559250,0.38064,2627.8,2627.5,3.2078]
[1729557559453,0.38067,2627.6,2627.5,3.2078]
[1729557559652,3.2078,2628.2,2627.5,47.6578]
[1729557559653,2.53856427,2628.1,2627.5,47.6578]
[1729557559964,2.53856427,2628.1,2627.5,52.51663331]
[1729557560145,2.53856427,2628.1,2627.8,3.65]
[1729557560352,2.53856427,2628.1,2627.8,6.8578]
[1729557560677,2.53856427,2628.1,2627.9,4.94649582]
[1729557560851,2.91916427,2628.1,2627.9,4.94649582]
[1729557561247,0.38062,2627.9,2627.8,6.8578]
[1729557561551,0.38062,2627.9,2627.8,3.65]
[1729557561747,2.53856427,2628.1,2627.8,6.8578]
[1729557561946,2.53856427,2628.1,2627.8,3.65]
[1729557562157,0.38062,2627.9,2627.8,6.8578]
[1729557562455,0.38062,2628.0,2627.8,3.65]
[1729557562657,0.38062,2627.9,2627.8,3.65]
[1729557562857,2.53856427,2628.1,2627.8,3.65]
[1729557563556,2.53856427,2628.1,2628.0,3.65]
[1729557564448,2.91915427,2628.2,2628.0,3.65]
[1729557564654,2.91915427,2628.2,2628.0,8.60934958]
[1729557564655,2.53856427,2628.2,2628.0,8.60934958]
[1729557564956,6.72395427,2628.1,2627.5,40.8]
[1729557565257,3.2078,2627.6,2627.1,3.65]
[1729557565460,3.58847,2627.6,2627.4,3.65]
[1729557565754,3.2078,2627.9,2627.4,8.69683117]
[1729557566054,3.2078,2627.6,2627.4,3.65]
[1729557566256,3.58847,2627.6,2627.4,3.65]
[1729557566454,3.2078,2627.6,2627.4,3.65]
[1729557567156,5.5502,2627.9,2627.4,3.65]
[1729557568058,0.38066,2627.7,2627.4,3.65]
[1729557568257,5.5502,2627.9,2627.1,44.45]
[1729557568453,0.38065,2627.7,2627.1,44.83073]
[1729557568873,0.38065,2627.7,2627.1,44.45]
[1729557569055,0.38067,2627.7,2627.1,44.83073]
[1729557569254,2.3424,2627.9,2627.7,0.38065]
[1729557569454,2.53856427,2628.0,2627.6,3.65]
[1729557569762,2.53856427,2628.0,2627.7,4.8978457]
[1729557570354,2.53856427,2627.9,2627.7,4.8978457]
[1729557570760,2.53856427,2627.9,2627.8,0.38064]
[1729557570961,2.53856427,2628.2,2627.8,0.38064]
[1729557571159,2.53856427,2628.2,2627.9,3.65]
[1729557571463,2.91914427,2628.2,2627.9,3.65]
[1729557571658,0.38059,2628.1,2627.7,0.38064]
[1729557571962,0.38059,2628.1,2627.6,3.65]
[1729557571963,2.53856427,2628.2,2627.6,3.65]
[1729557572153,0.38063,2627.9,2627.6,3.65]
[1729557572761,3.58842,2628.0,2627.6,4.03066]
[1729557572957,3.2078,2628.0,2627.6,3.65]
[1729557573166,0.38064,2627.8,2627.6,3.65]
[1729557573866,3.2078,2628.0,2627.3,3.65]
[1729557574056,2.91922427,2627.7,2627.3,3.65]
[1729557574359,2.53856427,2627.7,2627.3,3.65]
[1729557574860,0.38067,2627.6,2627.3,3.65]
[1729557575263,2.53856427,2627.7,2627.3,3.65]
[1729557575567,0.38067,2627.6,2627.3,3.65]
[1729557575870,2.91922427,2627.7,2627.3,0.38071]
[1729557576058,0.38067,2627.6,2627.2,0.38072]
[1729557576255,2.91922427,2627.7,2627.2,0.38072]
[1729557576663,2.91922427,2627.7,2627.1,44.0078]
[1729557576857,2.53856427,2627.7,2627.1,44.0078]
[1729557577259,2.91922427,2627.7,2627.2,5.43015452]
[1729557578068,2.53856427,2627.7,2627.3,3.65]
[1729557578267,2.53856427,2627.7,2627.3,4.0307]
[1729557578466,0.38067,2627.6,2627.4,4.86065181]
[1729557578663,2.53856427,2627.7,2627.4,4.86065181]
[1729557579267,2.53856427,2627.6,2627.4,4.86065181]
[1729557581866,2.91923427,2627.6,2627.4,4.86065181]
[1729557582572,2.53856427,2627.6,2627.4,4.86065181]
[1729557582768,2.91923427,2627.6,2627.4,4.86065181]
[1729557583370,2.91923427,2627.6,2627.1,44.0078]
[1729557583371,3.8056,2627.5,2627.1,44.0078]
[1729557583668,0.38072,2627.2,2627.1,44.0078]
[1729557583867,6.72568427,2627.2,2627.1,3.2078]
[1729557584175,6.72568427,2627.2,2626.3,4.8066]
[1729557584176,0.38081,2626.7,2626.4,6.8578]
[1729557584366,2.91937427,2626.7,2626.5,40.8]
[1729557584668,2.53856427,2626.7,2626.5,40.8]
[1729557585865,2.91937427,2626.6,2626.5,40.8]
[1729557586067,2.53856427,2626.6,2626.5,40.8]
[1729557586566,2.91937427,2626.6,2626.5,40.8]
[1729557586772,2.53856427,2626.6,2626.5,53.1312726]
[1729557586965,1.5861783,2626.6,2626.5,53.5120926]
[1729557587765,1.5861783,2626.6,2626.5,49.3240726]
[1729557588166,1.5861783,2626.6,2626.5,56.7198926]
[1729557588968,1.5861783,2627.0,2626.5,56.3390726]
[1729557589175,1.5861783,2627.0,2626.9,0.38077]
[1729557589476,1.5861783,2627.0,2626.9,5.35190857]
[1729557589774,1.5861783,2627.0,2626.9,9.15830857]
[1729557590176,0.95146,2628.2,2626.9,9.15830857]
[1729557590177,3.2078,2628.0,2627.3,0.38071]
[1729557590370,0.38064,2627.8,2627.3,0.3807]
[1729557590572,11.158,2627.7,2627.6,0.38066]
[1729557590969,11.158,2627.7,2627.6,41.18066]
[1729557591172,11.158,2627.7,2627.6,40.8]
[1729557592174,14.9636,2627.7,2627.3,3.2078]
[1729557592474,0.38069,2627.4,2627.3,3.2078]
[1729557592667,15.34509,2627.4,2627.3,44.0078]
[1729557593175,11.53869,2627.4,2627.3,44.0078]
[1729557593374,11.158,2627.4,2627.3,44.0078]
[1729557594371,11.158,2627.4,2627.3,56.84556839]
[1729557594567,11.158,2627.4,2627.3,53.63776839]
[1729557594783,11.158,2627.4,2627.3,46.17136839]
[1729557595274,11.158,2627.4,2627.3,45.79065839]
[1729557596473,11.158,2627.4,2627.3,49.37916839]
[1729557596867,11.158,2627.4,2627.3,45.79065839]
[1729557597081,0.38067,2627.7,2627.3,48.99845839]
[1729557597372,0.38067,2627.7,2627.3,45.79065839]
[1729557597765,11.158,2627.9,2627.3,45.79065839]
[1729557597968,11.158,2627.9,2627.4,0.38069]
[1729557597969,0.38064,2627.8,2627.4,0.38069]
[1729557598575,0.38067,2627.6,2627.3,45.79065839]
[1729557599080,0.38069,2627.5,2627.3,45.79065839]
[1729557600571,11.158,2627.9,2627.0,3.2078]
[1729557600772,3.2078,2627.7,2627.0,3.2078]
[1729557600971,0.38074,2627.2,2627.0,3.2078]
[1729557601179,0.38074,2627.2,2627.1,40.8]
[1729557601381,11.158,2627.2,2626.6,6.8678]
[1729557601580,0.38079,2626.8,2626.6,3.66]
[1729557601882,11.158,2627.3,2626.6,44.46]
[1729557602379,11.158,2627.3,2626.7,5.22957755]
[1729557602380,0.38074,2627.2,2626.7,5.22957755]
[1729557602579,11.158,2627.3,2626.8,7.24857]
[1729557602580,11.53872,2627.3,2626.8,7.24857]
[1729557602981,11.53872,2627.3,2626.9,4.84878755]
[1729557603174,11.53872,2627.3,2626.9,5.22955755]
[1729557603381,11.158,2627.3,2626.9,5.22955755]
[1729557603682,11.158,2627.3,2627.0,0.38075]
[1729557603880,11.158,2627.3,2627.1,3.66]
[1729557604074,11.158,2627.3,2627.2,3.58852]
[1729557604275,2.2905,2628.3,2627.5,0.38068]
[1729557604276,11.158,2627.8,2627.5,0.38068]
[1729557604499,11.158,2628.2,2628.0,0.3806]
[1729557604779,11.158,2628.5,2628.1,8.50541124]
[1729557604973,11.158,2628.5,2628.1,8.88600124]
[1729557605175,11.158,2628.5,2628.1,8.50541124]
[1729557605372,0.38055,2628.4,2628.1,8.50541124]
[1729557605580,0.38055,2628.4,2627.8,1.3755084]
[1729557605581,0.38058,2628.2,2627.8,3.66]
[1729557605783,11.158,2628.5,2627.8,3.66]
[1729557605980,0.38059,2628.2,2627.8,3.66]
[1729557606280,0.38065,2627.8,2627.4,4.2026784]
[1729557606473,11.158,2627.8,2627.4,0.9948784]
[1729557606678,14.9636,2627.7,2627.2,2.47474737]
[1729557606987,14.9636,2627.7,2627.1,3.2078]
[1729557606988,0.38069,2627.4,2627.1,3.2078]
[1729557607182,11.158,2627.7,2627.1,3.2078]
[1729557607384,3.2078,2627.4,2626.7,0.9948784]
[1729557607580,0.38074,2627.2,2626.7,1.3756784]
[1729557607780,0.38075,2627.0,2626.6,41.7948784]
[1729557608079,0.38077,2626.9,2626.7,5.01282882]
[1729557608279,11.158,2627.3,2626.7,5.01282882]
[1729557608587,0.38075,2627.1,2626.7,5.01282882]
[1729557608995,0.38079,2626.8,2626.6,40.8]
[1729557609281,3.2078,2627.1,2626.6,40.8]
[1729557609282,11.158,2626.7,2626.6,40.8]
[1729557609588,0.3808,2626.7,2626.6,40.8]
[1729557609783,0.3808,2626.7,2626.1,3.2078]
[1729557609784,0.38082,2626.6,2626.1,4.2026784]
[1729557609985,3.2078,2626.8,2626.1,3.2078]
[1729557609986,0.38084,2626.5,2626.1,3.2078]
[1729557610287,0.38083,2626.5,2626.2,40.8]
[1729557611088,3.2078,2626.8,2626.2,40.8]
[1729557611288,3.2078,2626.5,2625.8,0.9948784]
[1729557611485,3.2078,2626.5,2625.2,6.8678]
[1729557611486,3.2078,2626.2,2625.2,6.8678]
[1729557611685,0.38092,2625.9,2625.3,0.38099]
[1729557611992,0.3809,2626.0,2625.5,5.36793341]
[1729557612183,13.5098,2626.1,2625.6,0.38095]
[1729557612385,13.5098,2626.1,2625.7,6.8678]
[1729557612386,11.158,2626.1,2625.7,6.8678]
[1729557612779,11.158,2626.1,2626.0,4.0409]
[1729557613003,11.158,2626.5,2626.1,0.38088]
[1729557613184,11.158,2626.5,2626.0,6.8678]
[1729557613384,11.158,2626.5,2626.3,3.66]
[1729557613686,11.158,2627.0,2626.4,8.15931154]
[1729557613888,11.158,2627.1,2626.7,3.66]
[1729557614086,11.158,2627.1,2626.7,4.04079]
[1729557614281,11.158,2627.1,2626.8,4.95151154]
[1729557614590,11.158,2627.1,2626.7,3.66]
[1729557615389,13.5098,2627.2,2626.9,0.38077]
[1729557615588,11.158,2627.2,2627.1,0.38074]
[1729557615797,11.158,2627.5,2627.1,0.38074]
[1729557616092,11.158,2627.5,2627.0,5.37700035]
[1729557616289,11.158,2627.5,2627.1,0.38074]
[1729557616585,11.158,2627.5,2627.0,4.99626035]
[1729557617190,11.158,2627.5,2627.1,40.8]
[1729557617589,14.9644,2627.5,2627.1,40.8]
[1729557617794,3.2078,2627.4,2627.1,40.8]
[1729557617993,3.5885,2627.4,2627.1,40.8]
[1729557618192,0.3807,2627.4,2626.8,0.38078]
[1729557618390,11.158,2627.5,2627.0,0.38074]
[1729557618593,11.158,2627.5,2627.1,40.8]
[1729557618793,11.53869,2627.5,2627.1,45.85685786]
[1729557618993,11.53869,2627.5,2627.1,40.8]
[1729557619191,11.158,2627.5,2627.1,41.18073]
[1729557619896,11.158,2627.5,2627.1,40.8]
[1729557620107,11.158,2627.5,2627.2,0.38072]
[1729557620304,11.158,2627.6,2627.4,0.38069]
[1729557620611,11.158,2627.8,2627.5,8.93028242]
[1729557620806,11.158,2627.8,2627.6,0.38066]
[1729557621012,11.158,2627.8,2627.5,4.04067]
[1729557621309,11.158,2627.8,2627.6,5.30029243]
[1729557621709,11.158,2627.8,2627.6,4.91962243]
[1729557622108,11.158,2627.8,2627.6,5.30028243]
[1729557622702,11.158,2627.8,2627.6,4.91962243]
[1729557623410,0.3807,2627.4,2627.1,40.8]
[1729557623613,0.38075,2627.1,2626.9,3.66]
[1729557623814,11.158,2627.0,2626.7,6.8678]
[1729557624121,3.2078,2627.2,2626.4,3.2078]
[1729557624317,0.38081,2626.7,2626.2,3.66]
[1729557624510,0.38086,2626.3,2626.1,9.523]
[1729557625017,0.38088,2626.1,2625.5,0.38097]
[1729557625312,11.158,2626.0,2625.7,4.83761731]
[1729557625515,11.158,2626.0,2625.8,40.8]
[1729557626412,11.158,2626.0,2625.4,3.66]
[1729557626917,0.38095,2625.7,2625.1,4.04102]
[1729557627313,11.158,2626.0,2625.3,4.87308857]
[1729557627512,0.38093,2625.8,2625.2,5.25409857]
[1729557627713,0.38092,2625.9,2625.4,3.66]
[1729557628315,0.38091,2625.9,2625.4,3.66]
[1729557628822,11.158,2626.0,2625.4,3.66]
[1729557629118,11.158,2626.0,2625.4,4.04098]
[1729557629311,11.53891,2626.0,2625.3,37.26678]
[1729557629507,0.38091,2625.9,2625.4,0.38097]
[1729557629713,0.38091,2625.9,2625.4,5.34132894]
[1729557630112,0.38091,2625.9,2625.4,0.38097]
[1729557630417,0.38091,2625.9,2625.5,40.8]
[1729557631107,11.53891,2626.0,2625.5,40.8]
[1729557631618,11.158,2626.0,2625.5,40.8]
[1729557631816,0.38092,2625.9,2625.5,40.8]
[1729557632009,11.158,2626.0,2625.5,40.8]
[1729557632210,11.158,2626.0,2625.6,0.38095]
[1729557632716,11.5389,2626.0,2625.6,0.38095]
[1729557633107,11.158,2626.0,2625.6,0.38095]
[1729557633307,11.158,2626.0,2625.9,4.04091]
[1729557633516,11.158,2626.0,2625.7,5.03097985]
[1729557633722,11.158,2626.0,2625.5,40.8]
[1729557633723,0.38092,2625.9,2625.5,40.8]
[1729557633913,11.53891,2626.0,2625.5,41.18096]
[1729557634110,3.58873,2625.8,2625.5,40.8]
[1729557634430,3.2078,2625.8,2625.5,40.8]
[1729557635015,3.2078,2625.8,2625.6,0.38095]
[1729557635209,3.2078,2625.8,2625.7,4.04094]
[1729557635822,11.158,2625.9,2625.7,7.4688]
[1729557636029,11.158,2626.3,2626.1,0.38088]
[1729557636320,11.158,2626.3,2626.1,0.38087]
[1729557636617,11.158,2626.3,2626.2,0.38087]
[1729557636823,11.158,2626.3,2626.2,9.02987785]
[1729557637025,11.158,2626.7,2626.2,7.468]
[1729557637228,11.5388,2626.7,2626.5,3.66]
[1729557637521,11.158,2626.7,2626.5,4.04082]
[1729557637711,11.158,2626.7,2626.6,40.8]
[1729557638418,11.5388,2626.7,2626.6,40.8]
[1729557638625,11.158,2626.7,2626.6,40.8]
[1729557638815,11.5388,2626.7,2626.6,40.8]
[1729557639419,11.158,2626.7,2626.6,40.8]
[1729557640216,11.5388,2626.7,2626.6,40.8]
[1729557640718,11.158,2626.7,2626.6,40.8]
[1729557640917,11.5388,2626.7,2626.6,40.8]
[1729557641118,11.5388,2626.7,2625.8,2.2945]
[1729557641119,19.5772,2626.7,2625.8,0.38092]
[1729557641326,3.2078,2626.4,2625.7,3.66]
[1729557641528,11.158,2626.7,2626.2,0.38086]
[1729557641529,0.38083,2626.5,2626.2,0.38086]
[1729557641729,0.38082,2626.5,2626.1,0.38087]
[1729557642021,0.38082,2626.5,2626.2,0.38087]
[1729557642221,11.158,2626.7,2626.0,4.88299085]
[1729557642423,3.2078,2626.6,2626.2,4.9657127]
[1729557642627,3.2078,2626.6,2626.1,4.9657127]
[1729557642819,3.58861,2626.6,2626.3,0.38085]
[1729557643026,0.38081,2626.6,2626.3,5.3465627]
[1729557643223,0.38081,2626.6,2626.3,0.38085]
[1729557643422,0.38081,2626.6,2626.2,0.38086]
[1729557643720,11.158,2626.7,2626.2,0.38086]
[1729557643721,11.158,2626.7,2626.4,0.38083]
[1729557643922,11.5388,2626.7,2626.4,0.38083]
[1729557644523,11.158,2626.6,2626.3,4.87241905]
[1729557644919,0.38084,2626.4,2626.3,4.87241905]
[1729557645716,11.158,2626.6,2626.3,4.87241905]
[1729557645926,11.53882,2626.6,2626.3,5.25326905]
[1729557646224,0.38084,2626.4,2626.3,4.87241905]
[1729557646426,11.158,2626.6,2626.3,5.25325905]
[1729557646427,14.74662,2626.6,2626.3,5.25325905]
[1729557646624,11.158,2626.6,2626.4,0.38084]
[1729557647029,11.158,2626.6,2626.3,4.87241905]
[1729557647030,11.53881,2626.6,2626.3,4.87241905]
[1729557647228,11.158,2626.6,2626.3,4.87241905]
[1729557647424,11.158,2626.6,2626.2,6.8678]
[1729557647627,11.158,2626.6,2626.5,0.38082]
[1729557648232,11.158,2626.6,2626.2,3.66]
[1729557648421,11.158,2626.6,2626.4,0.38083]
[1729557648618,11.158,2626.6,2626.4,5.43912168]
[1729557649024,3.2078,2626.9,2626.2,3.66]
[1729557649025,11.158,2626.8,2626.2,3.66]
[1729557649220,11.158,2626.8,2626.6,0.38081]
[1729557649838,11.53878,2626.8,2626.5,0.38082]
[1729557650231,11.53878,2626.8,2626.5,5.33925046]
[1729557650427,11.53878,2626.8,2626.5,0.38082]
[1729557650835,11.53878,2626.8,2626.6,4.9182057]
[1729557651034,11.53878,2626.8,2626.6,5.2990157]
[1729557651234,11.53878,2626.8,2626.6,4.9182057]
[1729557652033,0.3808,2626.7,2626.6,4.9182057]
[1729557652231,11.158,2626.8,2626.6,4.9182057]
[1729557652439,11.53879,2626.8,2626.6,4.9182057]
[1729557653236,11.158,2626.8,2626.6,4.9182057]
[1729557653437,0.3808,2626.7,2626.6,4.9182057]
[1729557654429,11.53879,2626.8,2626.6,4.9182057]
[1729557655035,11.158,2626.8,2626.7,0.3808]
[1729557655240,11.158,2626.9,2626.8,0.38078]
[1729557655543,11.158,2626.9,2626.8,4.04078]
[1729557655855,11.158,2626.9,2626.8,12.72170242]
[1729557656037,11.158,2627.4,2627.3,0.38071]
[1729557656243,4.64125882,2628.3,2628.2,0.38058]
[1729557656244,3.2078,2628.3,2628.2,0.38058]
[1729557656432,3.2078,2628.7,2628.1,3.66]
[1729557656639,3.2078,2628.7,2628.6,3.66]
[1729557656946,3.2078,2628.7,2628.6,9.09550934]
[1729557657240,3.2078,2628.7,2628.6,12.51898934]
[1729557657544,3.2078,2628.7,2628.6,12.89950934]
[1729557657751,2.4543,2629.6,2628.6,12.89950934]
[1729557657752,2.4543,2629.6,2628.6,20.05776113]
[1729557657933,2.4543,2629.6,2629.4,3.66]
[1729557658242,2.83469,2629.6,2629.1,6.8678]
[1729557658543,2.4543,2629.6,2629.2,4.93021769]
[1729557658750,0.3804,2629.5,2629.2,4.93021769]
[1729557659040,0.38039,2629.5,2629.2,4.93021769]
[1729557659745,2.4543,2629.6,2629.2,4.93021769]
[1729557659746,2.83468,2629.6,2629.2,4.93021769]
[1729557660043,0.38041,2629.4,2629.2,4.93021769]
[1729557660836,0.38041,2629.4,2628.3,3.1391]
[1729557660837,2.4543,2629.6,2628.9,3.66]
[1729557661040,2.4543,2629.6,2628.8,3.2078]
[1729557661256,0.3804,2629.5,2629.2,8.64956709]
[1729557661447,0.3804,2629.5,2629.1,8.19736709]
[1729557661448,2.4543,2629.6,2629.4,3.66]
[1729557661747,3.2078,2629.7,2629.4,3.66]
[1729557661937,3.2078,2629.7,2629.3,5.25246016]
[1729557661938,3.2078,2629.7,2629.3,3.2078]
[1729557662138,0.3804,2629.5,2629.2,3.66]
[1729557662344,2.3503,2629.9,2629.4,4.87205016]
[1729557662535,0.38037,2629.7,2629.5,3.66]
[1729557663238,2.3503,2629.9,2629.6,5.03507222]
[1729557663444,2.73064,2629.9,2629.6,5.03507222]
[1729557663642,2.3503,2629.9,2629.6,5.03507222]
[1729557663841,2.3503,2629.9,2629.6,5.41544222]
[1729557664046,0.38032,2630.0,2629.6,5.41544222]
[1729557664348,3.2078,2630.1,2629.6,5.03507222]
[1729557664546,0.38035,2629.8,2629.6,5.03507222]
[1729557664738,0.38036,2629.7,2629.3,40.8]
[1729557664942,0.38035,2629.8,2629.5,3.2078]
[1729557665181,0.38035,2629.8,2629.5,8.09322162]
[1729557665348,0.38035,2629.8,2629.5,3.2078]
[1729557665661,11.158,2630.3,2629.5,3.2078]
[1729557665839,2.502,2630.4,2629.7,3.66]
[1729557666038,2.88227,2630.4,2629.9,0.38032]
[1729557666236,2.88227,2630.4,2630.0,3.66]
[1729557666436,2.88227,2630.4,2630.0,8.63381955]
[1729557666437,2.502,2630.4,2630.0,8.63381955]
[1729557666645,2.88226,2630.4,2630.0,8.63381955]
[1729557666942,0.38028,2630.3,2630.0,8.63381955]
[1729557667543,2.502,2630.4,2630.0,8.63381955]
[1729557667752,0.38033,2629.9,2629.8,3.2078]
[1729557667949,0.38033,2630.0,2629.8,3.2078]
[1729557668145,2.502,2630.4,2629.9,3.66]
[1729557668146,0.3803,2630.2,2629.9,3.66]
[1729557668447,0.38029,2630.2,2629.9,3.66]
[1729557668850,2.502,2630.4,2629.9,3.66]
[1729557669148,0.3803,2630.2,2629.9,3.66]
[1729557669550,2.502,2630.4,2630.0,0.38032]
[1729557669551,2.88227,2630.4,2630.0,0.38032]
[1729557669744,2.88227,2630.4,2630.3,3.66]
[1729557670241,0.3803,2630.2,2630.1,3.66]
[1729557670443,2.502,2630.4,2630.1,3.66]
[1729557670644,2.502,2630.4,2630.3,3.66]
[1729557671245,0.38028,2630.3,2630.1,3.66]
[1729557671447,2.502,2630.4,2630.1,3.66]
[1729557671752,0.38029,2630.2,2630.1,3.66]
[1729557672047,0.38028,2630.3,2630.1,3.66]
[1729557672243,2.502,2630.4,2630.1,3.66]
[1729557672443,0.38028,2630.3,2630.1,3.66]
[1729557672653,0.38027,2630.3,2630.1,3.66]
[1729557672944,2.502,2630.4,2630.2,4.8568892]
[1729557673137,2.502,2630.4,2630.3,3.66]
[1729557674248,2.502,2630.4,2630.3,7.4616]
[1729557674455,2.3475,2630.5,2630.3,7.4616]
[1729557674757,2.3475,2630.5,2630.3,3.66]
[1729557675153,2.459,2630.9,2630.5,0.38024]
[1729557675452,0.3802,2630.8,2630.7,3.66]
[1729557681549,2.459,2630.9,2630.7,3.66]
[1729557681752,0.3802,2630.8,2630.7,3.66]
[1729557682651,2.459,2630.9,2630.7,3.66]
[1729557682866,2.8392,2630.9,2630.7,3.66]
[1729557683083,3.2078,2631.6,2630.8,8.06070613]
[1729557683616,0.38013,2631.3,2631.2,3.2078]
[1729557683933,0.38013,2631.3,2631.2,6.8678]
[1729557684007,0.38013,2631.3,2631.2,3.66]
[1729557684154,11.158,2631.8,2631.2,3.66]
[1729557684452,11.158,2631.8,2631.5,3.66]
[1729557684453,0.38009,2631.6,2631.5,3.66]
[1729557684954,15.9414,2631.9,2631.2,4.04014]
[1729557685163,15.9414,2631.9,2631.5,3.66]
[1729557685164,0.38009,2631.6,2631.5,3.66]
[1729557686258,0.38008,2631.7,2631.5,3.66]
[1729557686452,2.75525,2631.9,2631.6,4.04008]
[1729557686654,0.38006,2631.8,2631.7,3.2078]
[1729557686847,0.38006,2631.8,2631.7,8.20037534]
[1729557687053,0.38005,2631.9,2631.7,8.20037534]
[1729557687459,0.38006,2631.8,2631.7,8.20037534]
[1729557687649,0.38006,2631.8,2631.7,3.2078]
[1729557689056,0.38006,2631.8,2631.6,3.66]
[1729557689057,0.38007,2631.7,2631.6,3.66]
[1729557689755,11.158,2632.1,2631.4,3.66]
[1729557689756,0.3801,2631.5,2631.4,3.66]
[1729557691456,0.3801,2631.6,2631.4,3.66]
[1729557691650,11.158,2632.1,2631.4,3.66]
[1729557691859,0.3801,2631.5,2631.4,3.66]
[1729557692258,3.8,2631.5,2631.4,2.97]
[1729557692451,0.3801,2631.5,2631.4,2.97]
[1729557694250,4.1801,2631.5,2631.4,2.97]
[1729557694655,0.3801,2631.5,2631.4,2.97]
[1729557695254,4.15792,2631.9,2631.4,2.97]
[1729557695255,0.3801,2631.6,2631.4,2.97]
[1729557695455,0.3801,2631.6,2631.5,2.97]
[1729557696053,11.158,2632.1,2631.5,2.97]
[1729557696262,0.38003,2632.0,2631.9,2.97]
[1729557696452,0.38006,2631.8,2631.7,2.97]
[1729557697256,11.158,2632.1,2631.7,2.97]
[1729557697458,0.38006,2631.8,2631.7,2.97]
[1729557698361,0.38005,2631.9,2631.7,2.97]
[1729557698565,0.38005,2631.9,2631.8,2.97]
[1729557698776,0.38004,2632.0,2631.8,2.97]
[1729557698957,11.158,2632.2,2631.8,2.97]
[1729557699159,0.38004,2631.9,2631.8,2.97]
[1729557699564,0.38004,2632.0,2631.8,2.97]
[1729557699759,0.38004,2632.0,2631.9,2.97]
[1729557700359,4.8709,2632.3,2631.7,2.97]
[1729557700761,4.8709,2632.3,2631.4,3.2078]
[1729557700762,0.38005,2631.9,2631.6,0.38008]